{"text_format":"1","workbook":"xlsx","n_sheets":6,"sheets":["Menu","CHARGE DE CONSIGNATION","CHARGE DE TRAVAUX","TABLEAU","BESOIN D'AIDE","LISTE HABILITATION"],"not_rendered":{"charts":0,"images":17,"macros":1,"external_links":1,"defined_names":6,"comments":0,"pivot_tables":0},"unopened":[],"bounds":{"document_bytes":16777216,"sheet_cells":100000,"rows_first":2000,"rows_last":500,"rows_between":2000,"halvings":0,"cell_chars":16384,"cell_head_chars":4096},"cells_cut":0,"cells_raw":0,"read":"whole","date_system":"1900"}

{"sheet":"Menu","index":0,"n_rows":0,"n_cols":0,"rows_kept":0,"cut":false,"hidden":false,"merged":[]}

{"sheet":"CHARGE DE CONSIGNATION","index":1,"n_rows":59,"n_cols":24,"rows_kept":59,"cut":false,"hidden":false,"merged":[[53,7,53,9],[53,11,53,14],[27,3,31,25],[41,8,45,26],[49,13,49,19],[49,23,49,26],[51,15,51,20],[13,5,13,14],[15,6,15,15],[17,7,19,25],[23,9,23,17],[23,20,23,26],[59,7,63,13],[59,17,63,23],[8,6,8,17],[35,1,39,27],[0,8,1,20],[0,21,0,28],[1,22,1,28],[6,5,6,17],[2,0,2,28],[0,0,0,5],[0,6,0,7],[1,0,1,5],[1,6,1,7],[4,8,4,17],[4,21,4,26],[10,10,11,25]]}
[2,null,null,null,null,null,null,null,"FORMULAIRE DE CONSIGNATION\nET TRAVAUX D’ORDRE ELECTRIQUE",null,null,null,null,null,null,null,null,null,null,null,null," Numéro fiche"]
[null,null,null,null,null,null,null,null,null,null,null,null,null,null,null,null,null,null,null,null,null,"N°"]
[]
[]
[null,null,"Le chargé de travaux, M.",null,null,null,null,null,{"$f":"VLOOKUP($A$1,TABLEAU!$A$3:$AC$118,3,TRUE)","v":"DELAMARE"},null,null,null,null,null,null,null,null,null,null," Tél : ",null,{"$f":"VLOOKUP($A$1,TABLEAU!$A$3:$AB$118,4,TRUE)","v":""}]
[]
[null,null,"Société : ",null,null,{"$f":"VLOOKUP($A$1,TABLEAU!$A$3:$AB$118,5,TRUE)","v":"BES"}]
[]
[null,null,"Habilitation : ",null,null,null,{"$f":"VLOOKUP($A$1,TABLEAU!$A$3:$AB$118,6,TRUE)","v":"B2V"}]
[]
[null,null,"Intervenant sur l'installation ci-après :",null,null,null,null,null,null,null,{"$f":"VLOOKUP($A$1,TABLEAU!$A$3:$AB$118,7,TRUE)","v":"Armoires de commandes centrale de secours GE"}]
[]
[]
[null,null,"Local : ",null,null,{"$f":"VLOOKUP($A$1,TABLEAU!$A$3:$AB$118,8,TRUE)","v":"CE-S-E1-L0002"}]
[]
[null,null,"Equipement : ",null,null,null,{"$f":"VLOOKUP($A$1,TABLEAU!$A$3:$AB$118,9,TRUE)","v":"Commutateur de maintenance"}]
[]
[null,null,"Contrat ou travaux :",null,null,null,null,{"$f":"VLOOKUP($A$1,TABLEAU!$A$3:$AB$118,10,TRUE)","v":"Essai dynamique du mode maintenance de la centrale de secours GE"}]
[]
[]
[]
[]
[]
[null,null,"Le chargé de consignation, M.",null,null,null,null,null,null,{"$f":"VLOOKUP($A$1,TABLEAU!$A$3:$AB$118,12,TRUE)","v":"CHAMEY"},null,null,null,null,null,null,null,null,null,"Tél.",{"$f":"VLOOKUP($A$1,TABLEAU!$A$3:$AB$118,13,TRUE)","v":450823300}]
[]
[null,null,"Atteste qu'en vue de l'exécution de ces travaux, il a consigné :"]
[]
[null,null,null,{"$f":"VLOOKUP($A$1,TABLEAU!$A$3:$AB$118,14,TRUE)","v":"l'interrupteur Q3B du poste 3B après couplage des TGBT3A et TGBT3B"}]
[]
[]
[]
[]
[]
[]
[]
[null,"Le chargé de consignation de la société Eiffage Services est habilité à minima BC et/ou HC suivant le domaine de tension.\nLe chargé de travaux doit considérer comme étant sous tension tout ouvrage électrique autre que ceux dont la consignation lui est certifiée par la présente attestation ou par d'autres attestations en sa possession.\nLe chargé de travaux pourra travailler après avoir pris les mesures de sécurité qui lui incombent (vérification d'absence de tension, mise à la terre et en court-circuit)."]
[]
[]
[]
[]
[]
[null,"Dispositions particulières : ",null,null,null,null,null,null,{"$f":"VLOOKUP($A$1,TABLEAU!$A$3:$AB$118,15,TRUE)","v":"L'opération devras ètre réalisée en même temps que les couplages et consignations des TGBT1 et 2"}]
[]
[]
[]
[]
[]
[]
[]
[null,null,"L'avis de fin de travail devra être rendu au plus tard le ",null,null,null,null,null,null,null,null,null,null,{"$f":"VLOOKUP($A$1,TABLEAU!$A$3:$AB$118,17,TRUE)","v":"2017-12-05"},null,null,null,null,null,null,null,"à",null,{"$f":"VLOOKUP($A$1,TABLEAU!$A$3:$AB$118,18,TRUE)","v":"13:30"}]
[]
[null,null,"Le délai de restitution des installations, en cas d'urgence, est de ",null,null,null,null,null,null,null,null,null,null,null,null,{"$f":"VLOOKUP($A$1,TABLEAU!$A$3:$AB$118,19,TRUE)","v":"00:10:00"}]
[]
[null,null,"Attestation délivrée le  ",null,null,null,null,{"$f":"VLOOKUP($A$1,TABLEAU!$A$3:$AB$118,20,TRUE)","v":"2017-04-12"},null,null,"à",{"$f":"VLOOKUP($A$1,TABLEAU!$A$3:$AB$118,21,TRUE)","v":"10:00"},null,null,null,null,"au chargé de travaux qui s'engage à respecter "]
[]
[null,null,"les prestations de sécurité en vigueur."]
[]
[]
[null,null,null,null,null,null,null,null,null,null,"Le chargé de consignation",null,null,null,null,null,null,null,null,null,"Le chargé de travaux"]

{"sheet":"CHARGE DE TRAVAUX","index":2,"n_rows":79,"n_cols":24,"rows_kept":79,"cut":false,"hidden":false,"merged":[[2,0,2,28],[6,5,6,17],[8,6,8,17],[35,1,39,27],[0,0,0,5],[0,6,0,7],[0,8,1,20],[0,21,0,28],[1,0,1,5],[1,6,1,7],[1,22,1,28],[4,8,4,17],[4,21,4,26],[10,10,11,25],[13,5,13,14],[15,6,15,15],[17,7,19,25],[23,9,23,17],[23,20,23,26],[27,3,31,25],[41,8,45,26],[49,13,49,19],[49,23,49,26],[51,15,51,20],[53,7,53,9],[53,11,53,14],[59,7,63,13],[59,17,63,23],[79,7,83,13],[79,17,83,23],[67,8,67,19],[69,5,69,18],[71,4,71,12],[73,8,73,13],[73,15,73,18]]}
[3,null,null,null,null,null,null,null,"FORMULAIRE DE CONSIGNATION\nET TRAVAUX D’ORDRE ELECTRIQUE",null,null,null,null,null,null,null,null,null,null,null,null," Numéro fiche"]
[null,null,null,null,null,null,null,null,null,null,null,null,null,null,null,null,null,null,null,null,null,"N°"]
[]
[]
[null,null,"Le chargé de travaux, M.",null,null,null,null,null,{"$f":"VLOOKUP($A$1,TABLEAU!$A$3:$AB$118,3,TRUE)","v":"DELAMARE"},null,null,null,null,null,null,null,null,null,null," Tél : ",null,{"$f":"VLOOKUP($A$1,TABLEAU!$A$3:$AB$118,4,TRUE)","v":""}]
[]
[null,null,"Société : ",null,null,{"$f":"VLOOKUP($A$1,TABLEAU!$A$3:$AB$118,5,TRUE)","v":"BES"}]
[]
[null,null,"Habilitation : ",null,null,null,{"$f":"VLOOKUP($A$1,TABLEAU!$A$3:$AB$118,6,TRUE)","v":"B2V"}]
[]
[null,null,"Intervenant sur l'installation ci-après :",null,null,null,null,null,null,null,{"$f":"VLOOKUP($A$1,TABLEAU!$A$3:$AB$118,7,TRUE)","v":"Armoire de commande centrale de secours GE"}]
[]
[]
[null,null,"Local : ",null,null,{"$f":"VLOOKUP($A$1,TABLEAU!$A$3:$AB$118,8,TRUE)","v":"CH-S-N4-L0005"}]
[]
[null,null,"Equipement : ",null,null,null,{"$f":"VLOOKUP($A$1,TABLEAU!$A$3:$AB$118,9,TRUE)","v":"Commutateur de maintenance"}]
[]
[null,null,"Contrat ou travaux :",null,null,null,null,{"$f":"VLOOKUP($A$1,TABLEAU!$A$3:$AB$118,10,TRUE)","v":"Essais dynamique du mode maintenance de la centrale de secours"}]
[]
[]
[]
[]
[]
[null,null,"Le chargé de consignation, M.",null,null,null,null,null,null,{"$f":"VLOOKUP($A$1,TABLEAU!$A$3:$AB$118,12,TRUE)","v":"CHAMEY"},null,null,null,null,null,null,null,null,null,"Tél.",{"$f":"VLOOKUP($A$1,TABLEAU!$A$3:$AB$118,13,TRUE)","v":450823300}]
[]
[null,null,"Atteste qu'en vue de l'exécution de ces travaux, il a consigné :"]
[]
[null,null,null,{"$f":"VLOOKUP($A$1,TABLEAU!$A$3:$AB$118,14,TRUE)","v":"L'interrupteur Q1B du poste 1B après couplage des TGBT1A et TGBT1B"}]
[]
[]
[]
[]
[]
[]
[]
[null,"Le chargé de consignation de la société Eiffage Services est habilité à minima BC et/ou HC suivant le domaine de tension.\nLe chargé de travaux doit considérer comme étant sous tension tout ouvrage électrique autre que ceux dont la consignation lui est certifiée par la présente attestation ou par d'autres attestations en sa possession.\nLe chargé de travaux pourra travailler après avoir pris les mesures de sécurité qui lui incombent (vérification d'absence de tension, mise à la terre et en court-circuit)."]
[]
[]
[]
[]
[]
[null,"Dispositions particulières : ",null,null,null,null,null,null,{"$f":"VLOOKUP($A$1,TABLEAU!$A$3:$AB$118,15,TRUE)","v":"L'opération devras ètre réalisée en même temps que les couplages et consignations des TGBT2 et TGBT3"}]
[]
[]
[]
[]
[]
[]
[]
[null,"L'avis de fin de travail devra être rendu au plus tard le ",null,null,null,null,null,null,null,null,null,null,null,{"$f":"VLOOKUP($A$1,TABLEAU!$A$3:$AB$118,17,TRUE)","v":"05/12/17"},null,null,null,null,null,null,null,"à",null,{"$f":"VLOOKUP($A$1,TABLEAU!$A$3:$AB$118,18,TRUE)","v":"13:30"}]
[]
[null,"Le délai de restitution des installations, en cas d'urgence, est de ",null,null,null,null,null,null,null,null,null,null,null,null,null,{"$f":"VLOOKUP($A$1,TABLEAU!$A$3:$AB$118,19,TRUE)","v":"00:10:00"}]
[]
[null,"Attestation délivrée le  ",null,null,null,null,null,{"$f":"VLOOKUP($A$1,TABLEAU!$A$3:$AB$118,20,TRUE)","v":"2017-04-12"},null,null,"à",{"$f":"VLOOKUP($A$1,TABLEAU!$A$3:$AB$118,21,TRUE)","v":""},null,null,null,null,"au chargé de travaux qui s'engage à respecter "]
[]
[null,"les prestations de sécurité en vigueur."]
[]
[]
[null,null,null,null,null,null,null,null,null,null,"Le chargé de consignation",null,null,null,null,null,null,null,null,null,"Le chargé de travaux"]
[]
[]
[]
[]
[]
[]
[null,null,null,null,null,null,null,null,null,null,null,null,null,null,null,"AVIS DE FIN DE TRAVAIL"]
[]
[null,"Le chargé de travaux, M",null,null,null,null,null,null,{"$f":"VLOOKUP($A$1,TABLEAU!$A$3:$AB$118,23,TRUE)","v":0}]
[]
[null,"de la société :",null,null,null,{"$f":"VLOOKUP($A$1,TABLEAU!$A$3:$AB$118,24,TRUE)","v":0}]
[]
[null,"Avise M.",null,null,{"$f":"VLOOKUP($A$1,TABLEAU!$A$3:$AB$118,25,TRUE)","v":0},null,null,null,null,null,null,null,null,"chargé de consignation, que les travaux désignés"]
[]
[null,"précédemment sont terminés le",null,null,null,null,null,null,{"$f":"VLOOKUP($A$1,TABLEAU!$A$3:$AB$118,26,TRUE)","v":0},null,null,null,null,null,"à",{"$f":"VLOOKUP($A$1,TABLEAU!$A$3:$AB$118,27,TRUE)","v":""},null,null,null,"et que son personnel a été rassemblé "]
[]
[null,"et informé de la fin du travail. Le chargé de travaux déclare en outre, avoir enlevé les dispositifs de sécurité et autres matériels"]
[null,"placés par ses soins et remis les ouvrages en ordre de marche en ce qui le concerne."]
[]
[null,null,null,null,null,null,null,null,null,null,"Le chargé de consignation",null,null,null,null,null,null,null,null,null,"Le chargé de travaux"]

{"sheet":"TABLEAU","index":3,"n_rows":118,"n_cols":29,"rows_kept":118,"cut":false,"hidden":false,"merged":[]}
[]
[null,null,null,null,null,null,null,null,null,null,null,null,null,null,null,null,null,null,null,null,null,null,"","",""]
[1,"N°fiche","Nom du\nchargé de travaux","Téléphone \nchargé de travaux","Société","Habilitation","Intervenants","Local","Equipement","Contrat ou Travaux",null,"Nom du\n chargé de consignation","Télephone\nchargé de consignation","Commentaire\nExécution des travaux","Dispositions\nparticulières",null,"Date\ndu rendu fin de travail","Heure\n du rendu fin de travail","Délai \nde restitution","Date \nde l'attestation","Heure \nde l'attestation",null,"Nom du\nchargé de travaux","Société","Nom\ndu chargé de consignation","Date de fin de travaux","Heure de fin travaux",null,"Consigné / Déconsigné"]
[{"$f":"A3+1","v":2},1,"DELAMARE","","BES","B2V","Armoires de commandes centrale de secours GE","CE-S-E1-L0002","Commutateur de maintenance","Essai dynamique du mode maintenance de la centrale de secours GE",null,"CHAMEY",450823300,"l'interrupteur Q3B du poste 3B après couplage des TGBT3A et TGBT3B","L'opération devras ètre réalisée en même temps que les couplages et consignations des TGBT1 et 2",null,"2017-12-05","13:30","00:10:00","2017-04-12","10:00",null,"DELAMARE","BES","CHAMEY","2017-05-12","",null,"consigné"]
[3,2,"DELAMARE","","BES","B2V","Armoire de commande centrale de secours GE","CH-S-N4-L0005","Commutateur de maintenance","Essais dynamique du mode maintenance de la centrale de secours",null,"CHAMEY",450823300,"L'interrupteur Q1B du poste 1B après couplage des TGBT1A et TGBT1B","L'opération devras ètre réalisée en même temps que les couplages et consignations des TGBT2 et TGBT3",null,"05/12/17","13:30","00:10:00","2017-04-12","",null,null,null,null,null,"",null,"consigné"]
[{"$f":"#REF!+1","v":{"$error":"#REF!"}}]
[{"$error":"#REF!"}]
[{"$error":"#REF!"}]
[{"$error":"#REF!"}]
[{"$error":"#REF!"}]
[{"$error":"#REF!"}]
[{"$error":"#REF!"}]
[{"$error":"#REF!"}]
[{"$error":"#REF!"}]
[{"$error":"#REF!"}]
[{"$error":"#REF!"}]
[{"$error":"#REF!"}]
[{"$error":"#REF!"}]
[{"$error":"#REF!"}]
[{"$error":"#REF!"}]
[{"$error":"#REF!"}]
[{"$error":"#REF!"}]
[{"$error":"#REF!"}]
[{"$error":"#REF!"}]
[{"$error":"#REF!"}]
[{"$error":"#REF!"}]
[{"$error":"#REF!"}]
[{"$error":"#REF!"}]
[{"$error":"#REF!"}]
[{"$error":"#REF!"}]
[{"$error":"#REF!"}]
[{"$error":"#REF!"}]
[{"$error":"#REF!"}]
[{"$error":"#REF!"}]
[{"$error":"#REF!"}]
[{"$error":"#REF!"}]
[{"$error":"#REF!"}]
[{"$error":"#REF!"}]
[{"$error":"#REF!"}]
[{"$error":"#REF!"}]
[{"$error":"#REF!"}]
[{"$error":"#REF!"}]
[{"$error":"#REF!"}]
[{"$error":"#REF!"}]
[{"$error":"#REF!"}]
[{"$error":"#REF!"}]
[{"$error":"#REF!"}]
[{"$error":"#REF!"}]
[{"$error":"#REF!"}]
[{"$error":"#REF!"}]
[{"$error":"#REF!"}]
[{"$error":"#REF!"}]
[{"$error":"#REF!"}]
[{"$error":"#REF!"}]
[{"$error":"#REF!"}]
[{"$error":"#REF!"}]
[{"$error":"#REF!"}]
[{"$error":"#REF!"}]
[{"$error":"#REF!"}]
[{"$error":"#REF!"}]
[{"$error":"#REF!"}]
[{"$error":"#REF!"}]
[{"$error":"#REF!"}]
[{"$error":"#REF!"}]
[{"$f":"A64+1","v":{"$error":"#REF!"}}]
[{"$error":"#REF!"}]
[{"$error":"#REF!"}]
[{"$error":"#REF!"}]
[{"$error":"#REF!"}]
[{"$error":"#REF!"}]
[{"$error":"#REF!"}]
[{"$error":"#REF!"}]
[{"$error":"#REF!"}]
[{"$error":"#REF!"}]
[{"$error":"#REF!"}]
[{"$error":"#REF!"}]
[{"$error":"#REF!"}]
[{"$error":"#REF!"}]
[{"$error":"#REF!"}]
[{"$error":"#REF!"}]
[{"$error":"#REF!"}]
[{"$error":"#REF!"}]
[{"$error":"#REF!"}]
[{"$error":"#REF!"}]
[{"$error":"#REF!"}]
[{"$error":"#REF!"}]
[{"$error":"#REF!"}]
[{"$error":"#REF!"}]
[{"$error":"#REF!"}]
[{"$error":"#REF!"}]
[{"$error":"#REF!"}]
[{"$error":"#REF!"}]
[{"$error":"#REF!"}]
[{"$error":"#REF!"}]
[{"$error":"#REF!"}]
[{"$error":"#REF!"}]
[{"$error":"#REF!"}]
[{"$error":"#REF!"}]
[{"$error":"#REF!"}]
[{"$error":"#REF!"}]
[{"$error":"#REF!"}]
[{"$error":"#REF!"}]
[{"$error":"#REF!"}]
[{"$error":"#REF!"}]
[{"$error":"#REF!"}]
[{"$error":"#REF!"}]
[{"$error":"#REF!"}]
[{"$error":"#REF!"}]
[{"$error":"#REF!"}]
[{"$error":"#REF!"}]
[{"$error":"#REF!"}]
[{"$error":"#REF!"}]
[{"$error":"#REF!"}]
[{"$error":"#REF!"}]
[{"$error":"#REF!"}]
[{"$f":"A115+1","v":{"$error":"#REF!"}}]
[{"$error":"#REF!"}]
[{"$error":"#REF!"}]

{"sheet":"BESOIN D'AIDE","index":4,"n_rows":128,"n_cols":7,"rows_kept":128,"cut":false,"hidden":false,"merged":[[139,7,139,9],[141,5,143,5],[125,0,125,17],[129,6,131,6],[134,6,136,6],[138,5,138,9],[20,0,20,17],[52,0,52,17],[83,0,83,17],[32,20,32,24],[33,22,33,24],[35,20,37,20],[23,21,25,21],[28,21,30,21]]}
[]
[]
[]
[]
[]
[]
[]
[]
[]
[]
[]
[null,null,null,null,null,null,"MENU"]
[null,null,null,null,null,null,"FORMULAIRE CHARGE DE CONSIGNATION"]
[null,null,null,null,null,null,"FORMULAIRE CHARGE DE TRAVAUX"]
[null,null,null,null,null,null,"TABLEAU"]
[]
[]
[]
[]
[]
["MENU"]
[]
["Retour"]
[]
[]
[]
[]
[]
[]
[]
[]
[]
[]
[]
[]
[]
[]
[]
[]
[]
[]
[]
[]
[]
[]
[]
[]
[]
[]
[]
[]
[]
["FORMULAIRE CHARGE DE CONSIGNATION"]
[]
["Retour"]
[]
[]
[]
[]
[]
[]
[]
[]
[]
[]
[]
[]
[]
[]
[]
[]
[]
[]
[]
[]
[]
[]
[]
[]
[]
[]
[]
[]
["FORMULAIRE CHARGE DE TRAVAUX"]
[]
["Retour"]
[]
[]
[]
[]
[]
[]
[]
[]
[]
[]
[]
[]
[]
[]
[]
[]
[]
[]
[]
[]
[]
[]
[]
[]
[]
[]
[]
[]
[]
[]
[]
[]
[]
[]
[]
[]
[]
[]
[]
["TABLEAU"]
[]
["Retour"]

{"sheet":"LISTE HABILITATION","index":5,"n_rows":17,"n_cols":1,"rows_kept":17,"cut":false,"hidden":true,"merged":[]}
["B0"]
["BS"]
["B1"]
["B2"]
["B1V"]
["B2V"]
["BR"]
["BC"]
["BE Manœuvre"]
["H0"]
["H1"]
["H2"]
["H0V"]
["H1V"]
["H2V"]
["HC"]
["HE Manœuvre"]